fUSD/lending_fUSD_20250906
["ID","MTS","AMOUNT","RATE_DAILY","PERIOD"]
[383842616,1757139110305,-400.0,0.00068767,120]
[383842617,1757139110314,-10000.0,0.000688,120]
[383842618,1757139110324,-500.0,0.00068877,2]
[383842619,1757139110333,-10000.0,0.000689,120]
[383842620,1757139110342,-75649.15895174,0.00069,120]
[383842621,1757139110352,-10000.0,0.00069,120]
[383842622,1757139110361,-219.373275,0.00069,120]
[383842623,1757139110371,-151.0,0.00069,120]
[383842624,1757139110380,-151.0,0.00069,120]
[383842625,1757139110390,-151.0,0.00069,120]
[383842626,1757139110399,-151.0,0.00069,120]
[383842627,1757139110408,-151.0,0.00069,120]
[383842628,1757139110418,-151.0,0.00069,120]
[383842629,1757139110427,-154.17726,0.00069,120]
[383842630,1757139110440,-151.0,0.00069,120]
[383842631,1757139110450,-151.0,0.00069,120]
[383842632,1757139110459,-165.153119,0.00069,120]
[383842633,1757139110469,-1009.6056,0.00069,120]
[383842634,1757139110481,-179.81,0.00069,120]
[383842635,1757139110490,-4721.69,0.00069,120]
[383842636,1757139110499,-1865.6,0.00069,120]
[383842637,1757139110509,-404.86871758,0.00069041,120]
[383842638,1757139110520,-20000.0,0.0006925,120]
[383842639,1757139110530,-114362.377809,0.0006929,120]
[383842640,1757139110539,-150.0,0.0006929,120]
[383842641,1757139110548,-500.0,0.00069427,120]
[383842642,1757139110557,-30000.0,0.000695,120]
[383842643,1757139110567,-342.57,0.00069503,120]
[383842644,1757139110575,-1316.2,0.0006962,120]
[383842645,1757139110584,-150.0,0.000697,120]
[383842646,1757139110593,-1211.88,0.000697,73]
[383842647,1757139110603,-1304.168,0.00069704,120]
[383842648,1757139110612,-1582.763,0.00069704,120]
[383842649,1757139110622,-603.372,0.00069704,120]
[383842650,1757139110631,-570.128,0.00069704,120]
[383842651,1757139110641,-816.0,0.00069704,2]
[383842652,1757139110650,-156.39012754,0.0006973,60]
[383842653,1757139110659,-20000.0,0.0006975,120]
[383842654,1757139110668,-292.30659438,0.00069861,120]
[383842655,1757139110678,-2114.12200702,0.00069866,120]
[383842656,1757139110687,-1128.21291106,0.00069866,120]
[383842657,1757139110696,-1128.21291106,0.00069868,120]
[383842658,1757139110706,-292.30659438,0.00069872,120]
[383842659,1757139110716,-444.30602346,0.00069875,120]
[383842660,1757139110725,-1128.21291106,0.00069883,120]
[383842661,1757139110735,-292.30659438,0.00069885,120]
[383842662,1757139110744,-49819.18426894,0.00069888,120]
[383842663,1757139110754,-444.30602346,0.00069889,120]
[383842664,1757139110764,-150.32140435,0.000699,120]
[383842665,1757139110773,-386.14770532,0.000699,2]
[383842666,1757139110783,-292.30659438,0.00069914,120]
[383842667,1757139110792,-1128.21291106,0.0006992,120]
[383842668,1757139110802,-1128.21291106,0.0006993,120]
[383842669,1757139110811,-444.30602346,0.0006993,120]
[383842670,1757139110821,-1128.21291106,0.00069935,120]
[383842671,1757139110830,-1128.21291106,0.00069936,120]
[383842672,1757139110839,-444.30602346,0.00069947,120]
[383842673,1757139110848,-1948.7378126,0.00069952,6]
[383842674,1757139110858,-2114.12200702,0.00069956,120]
[383842675,1757139110867,-292.30659438,0.00069956,120]
[383842676,1757139110877,-2114.12200702,0.00069962,120]
[383842677,1757139110887,-2114.12200702,0.00069975,120]
[383842678,1757139110896,-444.30602346,0.00069978,120]
[383842679,1757139110906,-292.30659438,0.0006998,120]
[383842680,1757139110915,-292.30659438,0.00069981,120]
[383842681,1757139110925,-2114.12200702,0.00069987,120]
[383842682,1757139110936,-444.30602346,0.0006999,120]
[383842683,1757139110945,-444.30602346,0.00069993,120]
[383842684,1757139110955,-2114.12200702,0.00069997,120]
[383842685,1757139110965,-2114.12200702,0.00069999,120]
[383842686,1757139110977,-7493.85826776,0.00069999,120]
[383842687,1757139110987,-7044.2286592,0.0007,15]
[383842688,1757139110996,-300.0,0.0007,120]
[383842689,1757139111006,-20000.0,0.0007,120]
[383842690,1757139111016,-399401.19017841,0.0007,120]
[383842691,1757139111025,-34618.59056272,0.0007,30]
[383842692,1757139111035,-290.3405592,0.0007,120]
[383842693,1757139111044,-30000.0,0.0007,120]
[383842694,1757139111054,-151.0,0.0007,120]
[383842695,1757139111063,-189.784889,0.0007,120]
[383842696,1757139111073,-151.0,0.0007,120]
[383842697,1757139111082,-151.0,0.0007,120]
[383842698,1757139111092,-151.0,0.0007,120]
[383842699,1757139111101,-151.0,0.0007,120]
[383842700,1757139111111,-151.0,0.0007,120]
[383842701,1757139111120,-294.506924,0.0007,120]
[383842702,1757139111129,-151.0,0.0007,120]
[383842703,1757139111139,-151.0,0.0007,120]
[383842704,1757139111148,-151.0,0.0007,120]
[383842705,1757139111158,-151.0,0.0007,120]
[383842706,1757139111167,-151.0,0.0007,120]
[383842707,1757139111176,-151.0,0.0007,120]
[383842708,1757139111185,-151.0,0.0007,120]
[383842709,1757139111195,-170.97795,0.0007,120]
[383842710,1757139111206,-170.97795,0.0007,120]
[383842711,1757139111216,-170.97795,0.0007,120]
[383842712,1757139111226,-170.97795,0.0007,120]
[383842713,1757139111236,-151.0,0.0007,120]
[383842714,1757139111245,-151.0,0.0007,120]
[383842715,1757139111254,-154.813673,0.0007,120]
[383842716,1757139111264,-151.0,0.0007,120]
[383842717,1757139111273,-293.935401,0.0007,120]
[383842718,1757139111283,-151.0,0.0007,120]
[383842719,1757139111292,-151.0,0.0007,120]
[383842720,1757139111302,-152.811926,0.0007,120]
[383842721,1757139111311,-151.0,0.0007,120]
[383842722,1757139111321,-192.26024,0.0007,120]
[383842723,1757139111330,-192.26024,0.0007,120]
[383842724,1757139111340,-192.26024,0.0007,120]
[383842725,1757139111350,-192.26024,0.0007,120]
[383842726,1757139111359,-151.0,0.0007,120]
[383842727,1757139111369,-200.0,0.0007,120]
[383842728,1757139111378,-200.0,0.0007,120]
[383842729,1757139111388,-200.0,0.0007,120]
[383842730,1757139111398,-200.0,0.0007,120]
[383842731,1757139111407,-200.0,0.0007,120]
[383842732,1757139111417,-200.0,0.0007,120]
[383842733,1757139111427,-200.0,0.0007,120]
[383842734,1757139111436,-200.0,0.0007,120]
[383842735,1757139111446,-200.0,0.0007,120]
[383842736,1757139111456,-200.0,0.0007,120]
[383842737,1757139111466,-200.0,0.0007,120]
[383842738,1757139111476,-200.0,0.0007,120]
[383842739,1757139111486,-200.0,0.0007,120]
[383842740,1757139111496,-200.0,0.0007,120]
[383842741,1757139111506,-200.0,0.0007,120]
[383842742,1757139111517,-200.0,0.0007,120]
[383842743,1757139111527,-200.0,0.0007,120]
[383842744,1757139111537,-200.0,0.0007,120]
[383842745,1757139111546,-200.0,0.0007,120]
[383842746,1757139111556,-151.0,0.0007,120]
[383842747,1757139111565,-200.0,0.0007,120]
[383842748,1757139111575,-200.0,0.0007,120]
[383842749,1757139111585,-200.0,0.0007,120]
[383842750,1757139111594,-151.0,0.0007,120]
[383842751,1757139111604,-151.0,0.0007,2]
[383842752,1757139111614,-151.0,0.0007,120]
[383842753,1757139111624,-151.0,0.0007,120]
[383842754,1757139111634,-151.0,0.0007,120]
[383842755,1757139111643,-151.0,0.0007,120]
[383842756,1757139111653,-151.0,0.0007,120]
[383842757,1757139111662,-238.210585,0.0007,120]
[383842758,1757139111672,-151.0,0.0007,60]
[383842759,1757139111682,-151.0,0.0007,120]
[383842760,1757139111692,-151.0,0.0007,120]
[383842761,1757139111702,-151.0,0.0007,120]
[383842762,1757139111712,-151.0,0.0007,120]
[383842763,1757139111722,-151.0,0.0007,120]
[383842764,1757139111731,-151.0,0.0007,120]
[383842765,1757139111741,-151.0,0.0007,120]
[383842766,1757139111751,-151.0,0.0007,120]
[383842767,1757139111760,-151.0,0.0007,120]
[383842768,1757139111770,-151.0,0.0007,120]
[383842769,1757139111780,-700.503592,0.0007,120]
[383842770,1757139111789,-151.0,0.0007,120]
[383842771,1757139111800,-700.503592,0.0007,120]
[383842772,1757139111810,-151.0,0.0007,120]
[383842773,1757139111820,-700.503592,0.0007,120]
[383842774,1757139111830,-700.503592,0.0007,120]
[383842775,1757139111840,-151.0,0.0007,120]
[383842776,1757139111850,-151.0,0.0007,120]
[383842777,1757139111860,-160.211071,0.0007,120]
[383842778,1757139111870,-156.442162,0.0007,120]
[383842779,1757139111880,-151.0,0.0007,120]
[383842780,1757139111890,-333.219907,0.0007,120]
[383842781,1757139111900,-333.219907,0.0007,120]
[383842782,1757139111910,-333.219907,0.0007,120]
[383842783,1757139111920,-238.236622,0.0007,120]
[383842784,1757139111931,-333.219907,0.0007,120]
[383842785,1757139111941,-238.236622,0.0007,120]
[383842786,1757139111951,-238.236622,0.0007,120]
[383842787,1757139111961,-238.236622,0.0007,120]
[383842788,1757139111971,-156.856924,0.0007,120]
[383842789,1757139111981,-151.0,0.0007,120]
[383842790,1757139111991,-151.0,0.0007,120]
[383842791,1757139112002,-194.598617,0.0007,120]
[383842792,1757139112014,-154.459249,0.0007,120]
[383842793,1757139112024,-151.0,0.0007,120]
[383842794,1757139112035,-194.598617,0.0007,120]
[383842795,1757139112047,-152.715977,0.0007,120]
[383842796,1757139112056,-194.598617,0.0007,120]
[383842797,1757139112067,-194.598617,0.0007,120]
[383842798,1757139112078,-151.0,0.0007,120]
[383842799,1757139112088,-151.0,0.0007,120]
[383842800,1757139112099,-300.0,0.0007,5]
[383842801,1757139112110,-151.0,0.0007,120]
[383842802,1757139112122,-659.946177,0.0007,120]
[383842803,1757139112133,-659.946177,0.0007,120]
[383842804,1757139112142,-659.946177,0.0007,120]
[383842805,1757139112153,-659.946177,0.0007,120]
[383842806,1757139112164,-151.0,0.0007,120]
[383842807,1757139112175,-262.482971,0.0007,120]
[383842808,1757139112186,-262.482971,0.0007,120]
[383842809,1757139112195,-262.482971,0.0007,120]
[383842810,1757139112204,-444.131247,0.0007,120]
[383842811,1757139112213,-151.0,0.0007,120]
[383842812,1757139112223,-262.482971,0.0007,120]
[383842813,1757139112231,-444.131247,0.0007,120]
[383842814,1757139112240,-444.131247,0.0007,120]
[383842815,1757139112250,-230.481109,0.0007,120]
[383842816,1757139112259,-444.131247,0.0007,120]
[383842817,1757139112269,-151.0,0.0007,120]
[383842818,1757139112279,-151.0,0.0007,120]
[383842819,1757139112288,-151.0,0.0007,120]
[383842820,1757139112298,-338.883,0.0007,120]
[383842821,1757139112308,-247.0815,0.0007,120]
[383842822,1757139112317,-247.0815,0.0007,120]
[383842823,1757139112327,-338.883,0.0007,120]
[383842824,1757139112337,-747.978665,0.0007,120]
[383842825,1757139112348,-247.0815,0.0007,120]
[383842826,1757139112358,-338.883,0.0007,120]
[383842827,1757139112368,-747.978665,0.0007,120]
[383842828,1757139112378,-338.883,0.0007,120]
[383842829,1757139112388,-247.0815,0.0007,120]
[383842830,1757139112398,-747.978665,0.0007,120]
[383842831,1757139112408,-339.481056,0.0007,120]
[383842832,1757139112418,-747.978665,0.0007,120]
[383842833,1757139112429,-339.481056,0.0007,120]
[383842834,1757139112442,-151.0,0.0007,120]
[383842835,1757139112452,-151.0,0.0007,120]
[383842836,1757139112461,-339.481056,0.0007,120]
[383842837,1757139112471,-151.0,0.0007,10]
[383842838,1757139112482,-151.0,0.0007,120]
[383842839,1757139112493,-173.482653,0.0007,120]
[383842840,1757139112503,-339.481056,0.0007,120]
[383842841,1757139112514,-154.498351,0.0007,120]
[383842842,1757139112525,-152.651315,0.0007,120]
[383842843,1757139112535,-151.0,0.0007,120]
[383842844,1757139112545,-173.482653,0.0007,120]
[383842845,1757139112555,-151.0,0.0007,120]
[383842846,1757139112565,-173.482653,0.0007,120]
[383842847,1757139112574,-307.232738,0.0007,120]
[383842848,1757139112584,-173.482653,0.0007,120]
[383842849,1757139112594,-307.232738,0.0007,120]
[383842850,1757139112605,-210.656511,0.0007,120]
[383842851,1757139112615,-201.482259,0.0007,120]
[383842852,1757139112626,-151.0,0.0007,120]
[383842853,1757139112636,-210.656511,0.0007,120]
[383842854,1757139112647,-307.232738,0.0007,120]
[383842855,1757139112659,-201.482259,0.0007,120]
[383842856,1757139112669,-151.0,0.0007,120]
[383842857,1757139112679,-210.656511,0.0007,120]
[383842858,1757139112689,-307.232738,0.0007,120]
[383842859,1757139112700,-201.482259,0.0007,120]
[383842860,1757139112711,-151.0,0.0007,120]
[383842861,1757139112722,-210.656511,0.0007,120]
[383842862,1757139112732,-151.0,0.0007,120]
[383842863,1757139112742,-612.106446,0.0007,120]
[383842864,1757139112756,-201.482259,0.0007,120]
[383842865,1757139112766,-151.0,0.0007,120]
[383842866,1757139112776,-346.418084,0.0007,120]
[383842867,1757139112787,-612.106446,0.0007,120]
[383842868,1757139112797,-151.0,0.0007,120]
[383842869,1757139112807,-346.418084,0.0007,120]
[383842870,1757139112817,-612.106446,0.0007,120]
[383842871,1757139112827,-346.418084,0.0007,120]
[383842872,1757139112838,-612.106446,0.0007,120]
[383842873,1757139112848,-346.418084,0.0007,120]
[383842874,1757139112858,-151.0,0.0007,10]
[383842875,1757139112868,-331.983944,0.0007,120]
[383842876,1757139112878,-331.983944,0.0007,120]
[383842877,1757139112889,-331.983944,0.0007,120]
[383842878,1757139112901,-331.983944,0.0007,120]
[383842879,1757139112911,-151.0,0.0007,120]
[383842880,1757139112920,-151.0,0.0007,120]
[383842881,1757139112931,-812.172578,0.0007,120]
[383842882,1757139112941,-151.0,0.0007,120]
[383842883,1757139112951,-812.172578,0.0007,120]
[383842884,1757139112960,-812.172578,0.0007,120]
[383842885,1757139112970,-812.172578,0.0007,120]
[383842886,1757139112980,-223.99356,0.0007,120]
[383842887,1757139112990,-223.99356,0.0007,120]
[383842888,1757139112999,-223.99356,0.0007,120]
[383842889,1757139113009,-151.0,0.0007,2]
[383842890,1757139113019,-223.99356,0.0007,120]
[383842891,1757139113029,-151.0,0.0007,2]
[383842892,1757139113038,-790.624522,0.0007,120]
[383842893,1757139113048,-790.624522,0.0007,120]
[383842894,1757139113058,-151.0,0.0007,120]
[383842895,1757139113068,-151.0,0.0007,120]
[383842896,1757139113078,-790.624522,0.0007,120]
[383842897,1757139113087,-581.198494,0.0007,120]
[383842898,1757139113097,-155.823748,0.0007,120]
[383842899,1757139113107,-581.198494,0.0007,120]
[383842900,1757139113117,-790.624522,0.0007,120]
[383842901,1757139113127,-151.86608,0.0007,120]
[383842902,1757139113137,-22500.0,0.0007,120]
[383842903,1757139113147,-581.198494,0.0007,120]
[383842904,1757139113157,-151.0,0.0007,120]
[383842905,1757139113167,-151.86608,0.0007,120]
[383842906,1757139113178,-156.272538,0.0007,120]
[383842907,1757139113187,-581.198494,0.0007,120]
[383842908,1757139113197,-151.0,0.0007,120]
[383842909,1757139113206,-151.86608,0.0007,120]
[383842910,1757139113374,-151.0,0.0007,120]
[383842911,1757139113391,-151.86608,0.0007,120]
[383842912,1757139113401,-151.0,0.0007,120]
[383842913,1757139113410,-8924.8,0.0007,30]
[383842914,1757139113420,-151.0,0.0007,120]
[383842915,1757139113431,-151.0,0.0007,120]
[383842916,1757139113440,-151.0,0.0007,120]
[383842917,1757139113450,-238.379131,0.0007,120]
[383842918,1757139113460,-238.379131,0.0007,120]
[383842919,1757139113469,-238.379131,0.0007,120]
[383842920,1757139113479,-702.786079,0.0007,120]
[383842921,1757139113489,-702.786079,0.0007,120]
[383842922,1757139113499,-238.379131,0.0007,120]
[383842923,1757139113510,-702.786079,0.0007,120]
[383842924,1757139113520,-702.786079,0.0007,120]
[383842925,1757139113530,-151.0,0.0007,120]
[383842926,1757139113540,-160.209909,0.0007,120]
[383842927,1757139113549,-662.448502,0.0007,120]
[383842928,1757139113559,-3220.43,0.0007,30]
[383842929,1757139113569,-662.448502,0.0007,120]
[383842930,1757139113579,-662.448502,0.0007,120]
[383842931,1757139113589,-662.448502,0.0007,120]
[383842932,1757139113600,-2754.375304,0.0007,120]
[383842933,1757139113611,-358.152526,0.0007,120]
[383842934,1757139113623,-2754.375304,0.0007,120]
[383842935,1757139113634,-151.0,0.0007,120]
[383842936,1757139113644,-1748.103596,0.0007,120]
[383842937,1757139113655,-358.152526,0.0007,120]
[383842938,1757139113664,-2754.375304,0.0007,120]
[383842939,1757139113674,-1748.103596,0.0007,120]
[383842940,1757139113685,-358.152526,0.0007,120]
[383842941,1757139113694,-2754.375304,0.0007,120]
[383842942,1757139113705,-1748.103596,0.0007,120]
[383842943,1757139113715,-358.152526,0.0007,120]
[383842944,1757139113726,-1748.103596,0.0007,120]
[383842945,1757139113736,-151.0,0.0007,120]
[383842946,1757139113747,-151.0,0.0007,120]
[383842947,1757139113759,-151.0,0.0007,120]
[383842948,1757139113771,-5131.000149,0.0007,30]
[383842949,1757139113781,-5131.000149,0.0007,30]
[383842950,1757139113791,-558.060746,0.0007,120]
[383842951,1757139113800,-2337.394473,0.0007,120]
[383842952,1757139113811,-170.954605,0.0007,30]
[383842953,1757139113820,-5131.000149,0.0007,30]
[383842954,1757139113830,-558.060746,0.0007,120]
[383842955,1757139113840,-2337.394473,0.0007,120]
[383842956,1757139113849,-151.0,0.0007,60]
[383842957,1757139113860,-170.954605,0.0007,30]
[383842958,1757139113869,-5131.000149,0.0007,30]
[383842959,1757139113879,-151.0,0.0007,60]
[383842960,1757139113888,-170.954605,0.0007,30]
[383842961,1757139113898,-558.060746,0.0007,120]
[383842962,1757139113907,-2337.394473,0.0007,120]
[383842963,1757139113917,-151.0,0.0007,120]
[383842964,1757139113926,-151.0,0.0007,60]
[383842965,1757139113936,-170.954605,0.0007,30]
[383842966,1757139113946,-558.060746,0.0007,120]
[383842967,1757139113956,-151.0,0.0007,120]
[383842968,1757139113965,-2337.394473,0.0007,120]
[383842969,1757139113975,-224.810867,0.0007,60]
[383842970,1757139113984,-208.186397,0.0007,120]
[383842971,1757139113993,-625.838594,0.0007,120]
[383842972,1757139114003,-625.838594,0.0007,120]
[383842973,1757139114012,-625.838594,0.0007,120]
[383842974,1757139114022,-625.838594,0.0007,120]
[383842975,1757139114031,-624.690439,0.0007,120]
[383842976,1757139114041,-624.690439,0.0007,120]
[383842977,1757139114050,-624.690439,0.0007,120]
[383842978,1757139114060,-624.690439,0.0007,120]
[383842979,1757139114070,-2151.042427,0.0007,120]
[383842980,1757139114079,-2151.042427,0.0007,120]
[383842981,1757139114088,-240.981312,0.0007,15]
[383842982,1757139114098,-2151.042427,0.0007,120]
[383842983,1757139114107,-2070.792925,0.0007,120]
[383842984,1757139114116,-240.981312,0.0007,15]
[383842985,1757139114126,-2151.042427,0.0007,120]
[383842986,1757139114136,-240.981312,0.0007,15]
[383842987,1757139114146,-2070.792925,0.0007,120]
[383842988,1757139114155,-240.981312,0.0007,15]
[383842989,1757139114165,-2070.792925,0.0007,120]
[383842990,1757139114174,-2070.792925,0.0007,120]
[383842991,1757139114184,-271.541194,0.0007,120]
[383842992,1757139114193,-271.541194,0.0007,120]
[383842993,1757139114203,-271.541194,0.0007,120]
[383842994,1757139114212,-271.541194,0.0007,120]
[383842995,1757139114222,-151.0,0.0007,120]
[383842996,1757139114231,-199.750129,0.0007,120]
[383842997,1757139114241,-254.533976,0.0007,120]
[383842998,1757139114251,-715.719907,0.0007,120]
[383842999,1757139114260,-151.0,0.0007,120]
[383843000,1757139114269,-199.750129,0.0007,120]
[383843001,1757139114279,-165.286435,0.0007,120]
[383843002,1757139114287,-254.533976,0.0007,120]
[383843003,1757139114296,-715.719907,0.0007,120]
[383843004,1757139114305,-199.750129,0.0007,120]
[383843005,1757139114314,-254.533976,0.0007,120]
[383843006,1757139114323,-715.719907,0.0007,120]
[383843007,1757139114333,-199.750129,0.0007,120]
[383843008,1757139114342,-254.533976,0.0007,120]
[383843009,1757139114352,-160.219138,0.0007,120]
[383843010,1757139114361,-715.719907,0.0007,120]
[383843011,1757139114371,-151.0,0.0007,120]
[383843012,1757139114380,-160.219138,0.0007,120]
[383843013,1757139114390,-160.219138,0.0007,120]
[383843014,1757139114399,-151.0,0.0007,60]
[383843015,1757139114408,-160.219138,0.0007,120]
[383843016,1757139114418,-151.0,0.0007,60]
[383843017,1757139114427,-164.404291,0.0007,120]
[383843018,1757139114441,-151.0,0.0007,120]
[383843019,1757139114450,-209.066029,0.0007,60]
[383843020,1757139114459,-151.0,0.0007,30]
[383843021,1757139114469,-206.335663,0.0007,120]
[383843022,1757139114479,-151.0,0.0007,30]
[383843023,1757139114489,-153.45224,0.0007,120]
[383843024,1757139114498,-151.0,0.0007,120]
[383843025,1757139114508,-1530951.4184721,0.0007,15]
[383843026,1757139114937,-833493.184187,0.0007,15]
[383843027,1757139114969,-151.0,0.00047999,120]
[383843028,1757139114979,-377.52,0.00067937,120]
[383843029,1757139114988,-579.58,0.0007,15]
[383843030,1757139115231,-200.0,0.00029144,2]
[383843031,1757139115241,-181.08010149,0.00047999,120]
[383843032,1757139115251,-332.60791905,0.00047999,120]
[383843033,1757139115261,-151.0,0.00047999,120]
[383843034,1757139115272,-211.48664965,0.00047999,120]
[383843035,1757139115281,-151.0,0.00047999,120]
[383843036,1757139115290,-344.91441206,0.00047999,120]
[383843037,1757139115299,-151.0,0.00047999,120]
[383843038,1757139115309,-357.6762453,0.00047999,120]
[383843039,1757139115321,-151.0,0.00047999,120]
[383843040,1757139115331,-1264.24136897,0.00048671,26]
[383843041,1757139115340,-400.0,0.00054794,120]
[383843042,1757139115350,-400.0,0.00054794,120]
[383843043,1757139115359,-400.0,0.00054794,120]
[383843044,1757139115369,-400.0,0.00054794,120]
[383843045,1757139115378,-400.0,0.00057534,120]
[383843046,1757139115387,-400.0,0.00057534,120]
[383843047,1757139115396,-400.0,0.00057534,120]
[383843048,1757139115406,-400.0,0.00057534,120]
[383843049,1757139115415,-400.0,0.00060273,120]
[383843050,1757139115426,-400.0,0.00060273,120]
[383843051,1757139115437,-400.0,0.00060273,120]
[383843052,1757139115449,-400.0,0.00060273,120]
[383843053,1757139115460,-257.399549,0.00060273,120]
[383843054,1757139115469,-400.0,0.00063013,120]
[383843055,1757139115479,-400.0,0.00063013,120]
[383843056,1757139115488,-400.0,0.00063013,120]
[383843057,1757139115498,-420.6362504,0.00063013,120]
[383843058,1757139115508,-151.0,0.00065753,120]
[383843059,1757139115517,-400.0,0.00065753,120]
[383843060,1757139115527,-358.79014844,0.00065753,120]
[383843061,1757139115537,-400.0,0.00065753,120]
[383843062,1757139115546,-400.0,0.00068493,120]
[383843063,1757139115556,-400.0,0.00068493,120]
[383843064,1757139115566,-151.0,0.0007,120]
[383843065,1757139115575,-4310.58506289,0.0007,15]
[383843066,1757139115587,-67295.41323885,0.0007,15]
[383843067,1757139115599,-1363.68834929,0.0007,15]
[383843068,1757139115610,-9677.49190937,0.0007,15]
[383843069,1757139115621,-2450.08099561,0.0007,15]
[383843070,1757139116074,-26975.73879633,0.0007,15]
[383843071,1757139116086,-1730.84596,0.0007,15]
[383843072,1757139116540,-370.91026638,0.00047999,120]
[383843073,1757139116550,-151.0,0.00047999,120]
[383843074,1757139116560,-384.63394623,0.00047999,120]
[383843075,1757139116570,-398.86540225,0.00047999,120]
[383843076,1757139116579,-151.0,0.00047999,120]
[383843077,1757139116588,-151.0,0.00047999,120]
[383843078,1757139116598,-172.860832,0.00060273,120]
[383843079,1757139116608,-172.860832,0.00060273,120]
[383843080,1757139116617,-164.9857217,0.00063013,120]
[383843081,1757139116782,-532.87562025,0.000479,2]
[383843082,1757139116791,-172.860832,0.00060273,120]
[383843083,1757139116800,-943.2742783,0.00063013,120]
[383843084,1757139116811,-172.860832,0.00065753,120]
[383843085,1757139116823,-730.02382725,0.00065753,120]
[383843086,1757139116950,-201.75418834,0.000479,2]
[383843087,1757139116961,-378.23617275,0.00065753,120]
[383843088,1757139116971,-172.860832,0.00065753,120]
[383843089,1757139116981,-1108.26,0.00068493,120]
[383843090,1757139116992,-172.860832,0.0007,120]
[383843091,1757139117004,-172.860832,0.0007,120]
[383843092,1757139117013,-100408.49687042,0.0007,15]
[383843093,1757139117339,-1264.24136897,0.00049899,28]
[383843094,1757139117351,-504.19650685,0.00054794,120]
[383843095,1757139117364,-237.4694658,0.00054794,120]
[383843096,1757139117374,-600.0,0.00056823,120]
[383843097,1757139117383,-172.860832,0.00060273,120]
[383843098,1757139117393,-172.860832,0.00065753,120]
[383843099,1757139117403,-131.54530568,0.00065753,120]
[383843100,1757139117649,-41.31552632,0.00065753,120]
[383843101,1757139117660,-172.860832,0.0007,120]
[383843102,1757139117669,-172.860832,0.0007,120]
[383843103,1757139117678,-5336.73442755,0.0007,15]
[383843104,1757139117690,-86291.87435333,0.0007,15]
[383843105,1757139117701,-4055.02768392,0.0007,15]
[383843124,1757139627980,-253.39,0.00021724,2]
[383843125,1757139628006,-20.30928468,0.00022867,2]
[383843126,1757139631091,-157.97079583,0.00022867,2]
[383843127,1757139634399,-75.10991949,0.00022867,2]
[383843128,1757139634429,-123.91709753,0.0002401,2]
[383843130,1757139637219,-129.47290247,0.0002401,2]
[383843131,1757139637246,-42.6197547,0.00025154,2]
[383843132,1757139640288,-210.7702453,0.00025154,2]
[383843133,1757139640320,-88.64867241,0.00026297,2]
[383843134,1757139644748,-155.86,0.00026297,2]